[Event "Sabato rapido!"]
[Site "Chess.com"]
[Date "2020.05.09"]
[Round "3"]
[White "crippo"]
[Black "fausto2p"]
[Result "1-0"]
[WhiteElo "1481"]
[BlackElo "1088"]
[TimeControl "720+3"]
[EndTime "7:09:01 PDT"]
[Termination "crippo ha vinto per abbandono"]

1. e4 {[%clk 0:10:00.1]} 1... e6 {[%clk 0:11:58.9]} 2. d4 {[%clk 0:10:03]} 2...
d5 {[%clk 0:11:47.2]} 3. Nf3 {[%clk 0:10:05.9]} 3... c5 {[%clk 0:11:42.9]} 4.
Nc3 {[%clk 0:10:08.8]} 4... Nc6 {[%clk 0:11:42.5]} 5. exd5 {[%clk 0:10:11.7]}
5... exd5 {[%clk 0:11:42.7]} 6. dxc5 {[%clk 0:10:11]} 6... Bxc5 {[%clk
0:11:42.7]} 7. Qxd5 {[%clk 0:10:11.1]} 7... Qe7+ {[%clk 0:11:04.4]} 8. Ne4
{[%clk 0:10:01.5]} 8... Nf6 {[%clk 0:10:09]} 9. Qxc5 {[%clk 0:09:45.8]} 9...
Qxe4+ {[%clk 0:10:09.2]} 10. Be3 {[%clk 0:09:45.7]} 10... Nb4 {[%clk 0:09:05.1]}
11. O-O-O {[%clk 0:07:41.2]} 11... Nxa2+ {[%clk 0:08:22.7]} 12. Kb1 {[%clk
0:07:41]} 12... Nb4 {[%clk 0:08:19.7]} 13. Bb5+ {[%clk 0:06:56.7]} 13... Nd7
{[%clk 0:07:26.4]} 14. Rhe1 {[%clk 0:06:53.4]} 14... Qg4 {[%clk 0:03:08.3]} 15.
Bg5+ {[%clk 0:06:45.6]} 1-0

[Event "Sabato rapido!"]
[Site "Chess.com"]
[Date "2020.05.09"]
[Round "3"]
[White "pedrak"]
[Black "markk000"]
[Result "1-0"]
[WhiteElo "1721"]
[BlackElo "1513"]
[TimeControl "720+3"]
[EndTime "7:11:06 PDT"]
[Termination "pedrak ha vinto per scaccomatto"]

1. d4 {[%clk 0:12:02.9]} 1... Nf6 {[%clk 0:11:59.6]} 2. Nf3 {[%clk 0:12:01.8]}
2... g6 {[%clk 0:12:01.1]} 3. Bf4 {[%clk 0:11:59.6]} 3... Bg7 {[%clk 0:12:02.2]}
4. h3 {[%clk 0:12:01.1]} 4... d6 {[%clk 0:12:03.5]} 5. e3 {[%clk 0:12:02.5]}
5... O-O {[%clk 0:12:05.2]} 6. Be2 {[%clk 0:12:03.9]} 6... Nbd7 {[%clk
0:12:06.1]} 7. O-O {[%clk 0:12:05.2]} 7... c5 {[%clk 0:12:03]} 8. c3 {[%clk
0:12:06.2]} 8... b6 {[%clk 0:11:41.6]} 9. Nbd2 {[%clk 0:12:06.8]} 9... Bb7
{[%clk 0:11:43]} 10. a4 {[%clk 0:12:02.3]} 10... Rc8 {[%clk 0:11:20.6]} 11. Qb3
{[%clk 0:11:52.3]} 11... cxd4 {[%clk 0:11:11.5]} 12. exd4 {[%clk 0:11:52.8]}
12... Re8 {[%clk 0:10:23.2]} 13. Bc4 {[%clk 0:11:43.7]} 13... d5 {[%clk
0:09:55.1]} 14. Bd3 {[%clk 0:11:36.8]} 14... Ne4 {[%clk 0:09:49.4]} 15. Rad1
{[%clk 0:11:19.7]} 15... Ndf6 {[%clk 0:09:44]} 16. Be5 {[%clk 0:11:15.9]} 16...
Nxd2 {[%clk 0:09:28.9]} 17. Nxd2 {[%clk 0:11:12]} 17... Ne4 {[%clk 0:09:30.3]}
18. Bxg7 {[%clk 0:11:04.5]} 18... Kxg7 {[%clk 0:09:33.2]} 19. Rfe1 {[%clk
0:11:00.6]} 19... Nxd2 {[%clk 0:09:27]} 20. Rxd2 {[%clk 0:11:01.6]} 20... e6
{[%clk 0:09:28]} 21. Rde2 {[%clk 0:10:58.6]} 21... Qg5 {[%clk 0:09:27.2]} 22. a5
{[%clk 0:10:34.6]} 22... Rb8 {[%clk 0:08:49.4]} 23. axb6 {[%clk 0:10:32.7]}
23... axb6 {[%clk 0:08:52.3]} 24. Qxb6 {[%clk 0:10:21.6]} 24... Ba8 {[%clk
0:08:52.6]} 25. Qd6 {[%clk 0:10:21.1]} 25... Rb3 {[%clk 0:07:45.3]} 26. Qd7
{[%clk 0:09:09.6]} 26... Reb8 {[%clk 0:07:36.9]} 27. Qa4 {[%clk 0:09:03]} 27...
Qd8 {[%clk 0:07:05.1]} 28. Rb1 {[%clk 0:08:31.6]} 28... Qc8 {[%clk 0:05:32.5]}
29. Qa2 {[%clk 0:08:06.8]} 29... Bc6 {[%clk 0:05:02.7]} 30. Bc2 {[%clk
0:07:59.5]} 30... R3b6 {[%clk 0:04:56.2]} 31. b4 {[%clk 0:07:52.4]} 31... Bb5
{[%clk 0:04:51.2]} 32. Re3 {[%clk 0:07:53.5]} 32... Bc4 {[%clk 0:04:52]} 33. Bb3
{[%clk 0:07:51.9]} 33... Ra6 {[%clk 0:04:44.6]} 34. Qb2 {[%clk 0:07:52.5]} 34...
Rba8 {[%clk 0:04:41.1]} 35. Bxc4 {[%clk 0:07:51]} 35... Qxc4 {[%clk 0:04:44]}
36. Qd2 {[%clk 0:07:43.3]} 36... Ra2 {[%clk 0:04:41.5]} 37. Qe1 {[%clk 0:07:36]}
37... Rc2 {[%clk 0:04:31.7]} 38. Rc1 {[%clk 0:07:33.2]} 38... Raa2 {[%clk
0:04:33]} 39. Rxc2 {[%clk 0:07:32.5]} 39... Rxc2 {[%clk 0:04:35.9]} 40. Qa1
{[%clk 0:07:32]} 40... Ra2 {[%clk 0:04:17.6]} 41. Qb1 {[%clk 0:07:30.2]} 41...
Rc2 {[%clk 0:04:15.7]} 42. b5 {[%clk 0:07:12.7]} 42... Rxc3 {[%clk 0:03:58.2]}
43. Rxc3 {[%clk 0:07:13.9]} 43... Qxc3 {[%clk 0:04:01.1]} 44. b6 {[%clk
0:07:15.6]} 44... Qc8 {[%clk 0:03:56]} 45. b7 {[%clk 0:07:16.9]} 45... Qb8
{[%clk 0:03:58]} 46. Qb6 {[%clk 0:07:18]} 46... Kf8 {[%clk 0:03:51.9]} 47. Qc6
{[%clk 0:07:19.7]} 47... Ke7 {[%clk 0:03:38.7]} 48. Qc8 {[%clk 0:07:20]} 48...
Qxc8 {[%clk 0:03:36.3]} 49. bxc8=Q {[%clk 0:07:21.4]} 49... h5 {[%clk
0:03:38.6]} 50. f4 {[%clk 0:07:20.8]} 50... Kf6 {[%clk 0:03:40.1]} 51. Kf2
{[%clk 0:07:22.2]} 51... Kf5 {[%clk 0:03:41.7]} 52. Kf3 {[%clk 0:07:23.6]} 52...
f6 {[%clk 0:03:44]} 53. g4+ {[%clk 0:07:24.3]} 53... hxg4+ {[%clk 0:03:45.9]}
54. hxg4# {[%clk 0:07:25.8]} 1-0

[Event "Sabato rapido!"]
[Site "Chess.com"]
[Date "2020.05.09"]
[Round "3"]
[White "ottovolante"]
[Black "Mrtre7"]
[Result "0-1"]
[WhiteElo "1006"]
[BlackElo "1445"]
[TimeControl "720+3"]
[EndTime "7:12:41 PDT"]
[Termination "Mrtre7 ha vinto per scaccomatto"]

1. e4 {[%clk 0:12:02.9]} 1... c5 {[%clk 0:12:01.1]} 2. Nc3 {[%clk 0:11:55.2]}
2... e6 {[%clk 0:12:02.2]} 3. Bc4 {[%clk 0:11:56.5]} 3... Nc6 {[%clk 0:11:52.9]}
4. Nf3 {[%clk 0:11:56.5]} 4... a6 {[%clk 0:11:54.1]} 5. a3 {[%clk 0:11:45.6]}
5... b5 {[%clk 0:11:54.9]} 6. Ba2 {[%clk 0:11:33.1]} 6... Nf6 {[%clk 0:11:55.9]}
7. d3 {[%clk 0:11:32.9]} 7... Be7 {[%clk 0:11:45.2]} 8. Ne2 {[%clk 0:11:28.6]}
8... d5 {[%clk 0:11:31.7]} 9. e5 {[%clk 0:11:24.9]} 9... Ng4 {[%clk 0:09:30.2]}
10. Bf4 {[%clk 0:11:10.5]} 10... g5 {[%clk 0:09:05.8]} 11. Bg3 {[%clk
0:11:06.6]} 11... h5 {[%clk 0:09:01.5]} 12. h3 {[%clk 0:11:08.2]} 12... Nh6
{[%clk 0:08:55.2]} 13. Bh2 {[%clk 0:10:59.3]} 13... g4 {[%clk 0:08:44.6]} 14.
hxg4 {[%clk 0:10:49.4]} 14... Nxg4 {[%clk 0:08:39.7]} 15. Nd2 {[%clk 0:10:46]}
15... Ncxe5 {[%clk 0:08:31.9]} 16. Bxe5 {[%clk 0:10:30.4]} 16... Nxe5 {[%clk
0:08:31.3]} 17. d4 {[%clk 0:10:13]} 17... Ng4 {[%clk 0:08:19.8]} 18. Nf3 {[%clk
0:09:29.4]} 18... cxd4 {[%clk 0:07:12.2]} 19. Qxd4 {[%clk 0:09:12.2]} 19... Bf6
{[%clk 0:06:43.3]} 20. Qd3 {[%clk 0:08:43.6]} 20... Bxb2 {[%clk 0:05:28.6]} 21.
Rb1 {[%clk 0:08:44.5]} 21... Bf6 {[%clk 0:05:19.7]} 22. Ned4 {[%clk 0:08:28.9]}
22... Qb6 {[%clk 0:05:09.2]} 23. O-O {[%clk 0:08:05.5]} 23... Bb7 {[%clk
0:04:44.1]} 24. Rbe1 {[%clk 0:08:04.1]} 24... Kd7 {[%clk 0:04:35.5]} 25. c3
{[%clk 0:08:05.5]} 25... h4 {[%clk 0:04:21.1]} 26. Nh2 {[%clk 0:07:44.3]} 26...
Ne5 {[%clk 0:03:46.7]} 27. Qd1 {[%clk 0:07:00.1]} 27... Rag8 {[%clk 0:03:43.7]}
28. f4 {[%clk 0:06:44.3]} 28... Nc6 {[%clk 0:03:23.4]} 29. Rf2 {[%clk
0:06:19.4]} 29... Nxd4 {[%clk 0:03:18.5]} 30. cxd4 {[%clk 0:06:19.8]} 30... Bxd4
{[%clk 0:03:17.6]} 31. Re2 {[%clk 0:06:14]} 31... Bxf2+ {[%clk 0:03:17.3]} 32.
Rxf2 {[%clk 0:06:15.7]} 32... Rh7 {[%clk 0:03:06.4]} 33. Qf3 {[%clk 0:06:07.9]}
33... d4 {[%clk 0:03:01.8]} 34. Qxb7+ {[%clk 0:05:54.7]} 34... Qxb7 {[%clk
0:03:01.4]} 35. Nf3 {[%clk 0:05:48.9]} 35... h3 {[%clk 0:02:51.7]} 36. Ne5+
{[%clk 0:05:45.4]} 36... Kd6 {[%clk 0:02:48.1]} 37. g3 {[%clk 0:05:46.6]} 37...
Rxg3+ {[%clk 0:02:47.6]} 38. Kf1 {[%clk 0:05:47.8]} 38... Qh1+ {[%clk 0:02:47]}
39. Ke2 {[%clk 0:05:49.1]} 39... Re3+ {[%clk 0:02:43.8]} 40. Kd2 {[%clk
0:05:48]} 40... Qe1+ {[%clk 0:02:44.4]} 41. Kc2 {[%clk 0:05:47.7]} 41... Qxf2+
{[%clk 0:02:46.2]} 42. Kb1 {[%clk 0:05:43.8]} 42... Re1# {[%clk 0:02:47.3]} 0-1

[Event "Sabato rapido!"]
[Site "Chess.com"]
[Date "2020.05.09"]
[Round "3"]
[White "Luca090267"]
[Black "sergiodone"]
[Result "1-0"]
[WhiteElo "1411"]
[BlackElo "1484"]
[TimeControl "720+3"]
[EndTime "7:27:02 PDT"]
[Termination "Luca090267 ha vinto per tempo"]

1. e4 {[%clk 0:12:02.9]} 1... c5 {[%clk 0:11:44.2]} 2. Nc3 {[%clk 0:12:03.5]}
2... d6 {[%clk 0:11:38]} 3. g3 {[%clk 0:12:04.9]} 3... g6 {[%clk 0:11:39.5]} 4.
Bg2 {[%clk 0:12:06.5]} 4... Bg7 {[%clk 0:11:40.2]} 5. d3 {[%clk 0:12:07.5]} 5...
Nc6 {[%clk 0:11:38.8]} 6. f4 {[%clk 0:12:08.8]} 6... e6 {[%clk 0:11:32.4]} 7.
Nf3 {[%clk 0:12:09]} 7... Nf6 {[%clk 0:11:31]} 8. O-O {[%clk 0:12:08.6]} 8...
O-O {[%clk 0:11:31.7]} 9. h3 {[%clk 0:12:07.2]} 9... a6 {[%clk 0:11:33.2]} 10.
g4 {[%clk 0:12:08.2]} 10... Qc7 {[%clk 0:11:33.1]} 11. a3 {[%clk 0:11:49.9]}
11... Rb8 {[%clk 0:11:27.3]} 12. Qe1 {[%clk 0:11:38]} 12... b5 {[%clk
0:11:27.9]} 13. Ne2 {[%clk 0:11:06.8]} 13... Bb7 {[%clk 0:11:26.9]} 14. c3
{[%clk 0:11:04.7]} 14... d5 {[%clk 0:11:22.2]} 15. f5 {[%clk 0:10:57.3]} 15...
dxe4 {[%clk 0:11:19.7]} 16. dxe4 {[%clk 0:10:58.4]} 16... Nxe4 {[%clk
0:11:07.1]} 17. fxg6 {[%clk 0:10:18.4]} 17... fxg6 {[%clk 0:11:06.4]} 18. Qh4
{[%clk 0:10:01.1]} 18... e5 {[%clk 0:10:48.2]} 19. Bh6 {[%clk 0:09:40.1]} 19...
Qe7 {[%clk 0:09:47.8]} 20. Ng5 {[%clk 0:09:14.8]} 20... Bxh6 {[%clk 0:09:22.3]}
21. Qxh6 {[%clk 0:08:45.2]} 21... Qxg5 {[%clk 0:09:20.7]} 22. Qxg5 {[%clk
0:08:08.9]} 22... Nxg5 {[%clk 0:09:20.9]} 23. h4 {[%clk 0:08:07.8]} 23... Rxf1+
{[%clk 0:09:07.8]} 24. Rxf1 {[%clk 0:08:06]} 24... Ne6 {[%clk 0:09:09.1]} 25.
Rf6 {[%clk 0:07:17.2]} 25... Re8 {[%clk 0:08:51.5]} 26. Bd5 {[%clk 0:07:07.3]}
26... Nd8 {[%clk 0:08:45.6]} 27. Ba2 {[%clk 0:06:54.8]} 27... Kg7 {[%clk
0:08:45.6]} 28. Rf2 {[%clk 0:06:43.7]} 28... Rf8 {[%clk 0:08:41.3]} 29. Rh2
{[%clk 0:06:34.6]} 29... Nf4 {[%clk 0:08:36.6]} 30. Ng3 {[%clk 0:06:28.4]} 30...
Nd3 {[%clk 0:08:22.9]} 31. b4 {[%clk 0:06:20]} 31... c4 {[%clk 0:08:23.3]} 32.
Re2 {[%clk 0:06:04.4]} 32... Bf3 {[%clk 0:08:10.7]} 33. Re3 {[%clk 0:05:59]}
33... Bxg4 {[%clk 0:08:11.1]} 34. Ne4 {[%clk 0:06:00.3]} 34... Bf5 {[%clk
0:08:00.4]} 35. Nd6 {[%clk 0:06:00.9]} 35... e4 {[%clk 0:07:40.3]} 36. Kg2
{[%clk 0:05:34.2]} 36... Nc6 {[%clk 0:07:27.6]} 37. Kg3 {[%clk 0:05:09.4]} 37...
Nce5 {[%clk 0:07:24.7]} 38. Nxe4 {[%clk 0:05:00.3]} 38... Bxe4 {[%clk
0:07:22.4]} 39. Rxe4 {[%clk 0:05:01.8]} 39... h5 {[%clk 0:07:14.1]} 40. Bb1
{[%clk 0:04:56.5]} 40... Rf3+ {[%clk 0:07:13.8]} 41. Kg2 {[%clk 0:04:48.1]}
41... Rf2+ {[%clk 0:07:13.1]} 42. Kg1 {[%clk 0:04:41.6]} 42... Rb2 {[%clk
0:07:13]} 43. Bxd3 {[%clk 0:04:40.5]} 43... Nxd3 {[%clk 0:07:13.1]} 44. Re6
{[%clk 0:04:30.4]} 44... Rb3 {[%clk 0:07:11]} 45. Rxa6 {[%clk 0:04:31.6]} 45...
Rxc3 {[%clk 0:07:11.5]} 46. Rb6 {[%clk 0:04:32.7]} 46... Rxa3 {[%clk 0:07:07.1]}
47. Rxb5 {[%clk 0:04:34.5]} 47... Rb3 {[%clk 0:06:55.5]} 48. Rb7+ {[%clk
0:04:35.7]} 48... Kh6 {[%clk 0:06:48.4]} 49. b5 {[%clk 0:04:34.2]} 49... c3
{[%clk 0:06:50.2]} 50. Rc7 {[%clk 0:04:28.9]} 50... Rxb5 {[%clk 0:06:40.1]} 51.
Rxc3 {[%clk 0:04:29.4]} 51... Nf4 {[%clk 0:06:37.9]} 52. Rc4 {[%clk 0:04:16]}
52... Rf5 {[%clk 0:06:31.6]} 53. Kh2 {[%clk 0:04:12.1]} 53... Nd3 {[%clk
0:06:29.3]} 54. Kh3 {[%clk 0:03:58.5]} 54... Nf2+ {[%clk 0:06:28.3]} 55. Kg2
{[%clk 0:03:52.6]} 55... Ng4 {[%clk 0:06:29.6]} 56. Kg3 {[%clk 0:03:49.3]} 56...
Ne5 {[%clk 0:06:11.9]} 57. Ra4 {[%clk 0:03:42.9]} 57... Kg7 {[%clk 0:06:12.4]}
58. Ra7+ {[%clk 0:03:36.6]} 58... Nf7 {[%clk 0:05:48.6]} 59. Rb7 {[%clk
0:03:27.5]} 59... Re5 {[%clk 0:05:49]} 60. Rb4 {[%clk 0:03:21.6]} 60... Kf6
{[%clk 0:05:48.9]} 61. Rb6+ {[%clk 0:03:19.8]} 61... Re6 {[%clk 0:05:50.6]} 62.
Rb4 {[%clk 0:03:20.6]} 62... Ne5 {[%clk 0:05:46.4]} 63. Rf4+ {[%clk 0:03:13.6]}
63... Kg7 {[%clk 0:05:46.7]} 64. Ra4 {[%clk 0:03:11.3]} 64... Ng4 {[%clk
0:05:47.9]} 65. Rb4 {[%clk 0:03:09.7]} 65... Ne3 {[%clk 0:05:38.2]} 66. Kf3
{[%clk 0:02:59]} 66... Nf5 {[%clk 0:05:39.6]} 67. Kg2 {[%clk 0:02:59.9]} 67...
Re3 {[%clk 0:05:31]} 68. Rb7+ {[%clk 0:02:55.8]} 68... Kf6 {[%clk 0:05:31.2]}
69. Rb6+ {[%clk 0:02:56.7]} 69... Re6 {[%clk 0:05:31.4]} 70. Rb4 {[%clk
0:02:56.6]} 70... g5 {[%clk 0:05:18.9]} 71. hxg5+ {[%clk 0:02:57.4]} 71... Kxg5
{[%clk 0:05:20]} 72. Kh3 {[%clk 0:02:54.3]} 72... Re3+ {[%clk 0:05:18.3]} 73.
Kh2 {[%clk 0:02:51]} 73... h4 {[%clk 0:05:17.5]} 74. Ra4 {[%clk 0:02:49.3]}
74... Rf3 {[%clk 0:05:09.2]} 75. Kg2 {[%clk 0:02:42.4]} 75... Rf4 {[%clk
0:05:10.1]} 76. Ra3 {[%clk 0:02:37.2]} 76... Kg4 {[%clk 0:05:06.3]} 77. Rb3
{[%clk 0:02:34]} 77... Nd4 {[%clk 0:04:46.2]} 78. Ra3 {[%clk 0:02:31.1]} 78...
Re4 {[%clk 0:04:40.7]} 79. Ra4 {[%clk 0:02:20.4]} 79... Kf4 {[%clk 0:04:37.6]}
80. Kh3 {[%clk 0:02:10.9]} 80... Nf3 {[%clk 0:04:30.1]} 81. Ra3 {[%clk 0:01:59]}
81... Ng5+ {[%clk 0:04:24.4]} 82. Kh2 {[%clk 0:01:53.6]} 82... Re2+ {[%clk
0:03:50.6]} 83. Kg1 {[%clk 0:01:53.6]} 83... Re3 {[%clk 0:03:48.2]} 84. Ra4+
{[%clk 0:01:50.1]} 84... Ne4 {[%clk 0:03:48.3]} 85. Kh2 {[%clk 0:01:47.5]} 85...
h3 {[%clk 0:03:27.5]} 86. Rb4 {[%clk 0:01:42.9]} 86... Kg4 {[%clk 0:03:28]} 87.
Ra4 {[%clk 0:01:39.6]} 87... Re2+ {[%clk 0:03:29.2]} 88. Kh1 {[%clk 0:01:37.4]}
88... Kf3 {[%clk 0:03:27.6]} 89. Ra3+ {[%clk 0:01:36.5]} 89... Re3 {[%clk
0:03:28.6]} 90. Ra2 {[%clk 0:01:28]} 90... Ng3+ {[%clk 0:03:23.8]} 91. Kh2
{[%clk 0:01:27.2]} 91... Ne2 {[%clk 0:02:30]} 92. Kxh3 {[%clk 0:01:23]} 92...
Nf4+ {[%clk 0:01:51.2]} 93. Kh4 {[%clk 0:01:12.9]} 93... Ng2+ {[%clk 0:01:40.7]}
94. Kg5 {[%clk 0:01:10]} 94... Kg3 {[%clk 0:01:22.5]} 95. Kf5 {[%clk 0:01:06.9]}
95... Nh4+ {[%clk 0:01:07.7]} 96. Kf6 {[%clk 0:01:05.1]} 96... Nf3 {[%clk
0:00:54]} 97. Ra1 {[%clk 0:01:02.4]} 97... Kg4 {[%clk 0:00:45.3]} 98. Ra2 {[%clk
0:01:02.1]} 98... Kf4 {[%clk 0:00:34]} 99. Ra4+ {[%clk 0:00:59.8]} 99... Kg3
{[%clk 0:00:35.2]} 100. Ra1 {[%clk 0:00:59.1]} 100... Nd4 {[%clk 0:00:30.3]}
101. Rg1+ {[%clk 0:00:55.8]} 101... Kf2 {[%clk 0:00:27.3]} 102. Ra1 {[%clk
0:00:56.3]} 102... Kf3 {[%clk 0:00:12.1]} 103. Ra2 {[%clk 0:00:55.9]} 103... Ke4
{[%clk 0:00:12.3]} 104. Ra1 {[%clk 0:00:55.6]} 104... Rf3+ {[%clk 0:00:09.3]}
105. Ke7 {[%clk 0:00:53.5]} 105... Kd5 {[%clk 0:00:05.8]} 106. Ra5+ {[%clk
0:00:51]} 106... Kc4 {[%clk 0:00:06.5]} 107. Ra1 {[%clk 0:00:50.9]} 1-0

[Event "Sabato rapido!"]
[Site "Chess.com"]
[Date "2020.05.09"]
[Round "4"]
[White "OMatteoWuO"]
[Black "ottovolante"]
[Result "1-0"]
[WhiteElo "1182"]
[BlackElo "1001"]
[TimeControl "720+3"]
[EndTime "7:42:16 PDT"]
[Termination "OMatteoWuO ha vinto per scaccomatto"]

1. d4 {[%clk 0:12:02.9]} 1... d5 {[%clk 0:11:58.8]} 2. c4 {[%clk 0:12:01.7]}
2... c6 {[%clk 0:11:59.8]} 3. Nc3 {[%clk 0:12:02.5]} 3... Be6 {[%clk 0:11:58.2]}
4. Nf3 {[%clk 0:12:02.3]} 4... f6 {[%clk 0:11:59]} 5. e3 {[%clk 0:11:58.3]} 5...
Bf7 {[%clk 0:11:55.7]} 6. cxd5 {[%clk 0:11:54.5]} 6... cxd5 {[%clk 0:11:50.7]}
7. Bb5+ {[%clk 0:10:58]} 7... Nc6 {[%clk 0:11:48.3]} 8. Bxc6+ {[%clk 0:10:59.5]}
8... bxc6 {[%clk 0:11:49.3]} 9. O-O {[%clk 0:11:01.1]} 9... e6 {[%clk
0:11:47.3]} 10. Re1 {[%clk 0:10:48.3]} 10... h5 {[%clk 0:11:48.6]} 11. h4 {[%clk
0:10:44.3]} 11... Qc7 {[%clk 0:11:17.5]} 12. b3 {[%clk 0:10:32.5]} 12... Bb4
{[%clk 0:11:15.8]} 13. Bb2 {[%clk 0:10:19.7]} 13... Ne7 {[%clk 0:11:05.3]} 14.
a3 {[%clk 0:10:17.6]} 14... Bd6 {[%clk 0:11:04.9]} 15. g3 {[%clk 0:10:10.6]}
15... Bg6 {[%clk 0:10:58.2]} 16. Rc1 {[%clk 0:09:29.5]} 16... Bf5 {[%clk
0:10:41.3]} 17. Nb5 {[%clk 0:08:09.3]} 17... Qd8 {[%clk 0:10:32.9]} 18. Nxd6+
{[%clk 0:08:07.9]} 18... Qxd6 {[%clk 0:10:33.8]} 19. b4 {[%clk 0:08:03.9]} 19...
Rc8 {[%clk 0:10:20.7]} 20. Nd2 {[%clk 0:06:58.3]} 20... Kf7 {[%clk 0:10:16.9]}
21. e4 {[%clk 0:06:56.2]} 21... dxe4 {[%clk 0:10:11.3]} 22. Nxe4 {[%clk
0:06:45.1]} 22... Bxe4 {[%clk 0:10:12.3]} 23. Rxe4 {[%clk 0:06:46.6]} 23... f5
{[%clk 0:10:13.9]} 24. Qf3 {[%clk 0:06:29]} 24... g6 {[%clk 0:10:11.1]} 25. Rce1
{[%clk 0:05:58.4]} 25... Rhe8 {[%clk 0:08:52.5]} 26. Rxe6 {[%clk 0:05:50.1]}
26... Qc7 {[%clk 0:08:53.3]} 27. Qb3 {[%clk 0:05:20.3]} 27... Kg7 {[%clk
0:08:51.3]} 28. d5+ {[%clk 0:04:49.5]} 28... Kh6 {[%clk 0:08:50.1]} 29. Bc1+
{[%clk 0:04:41.8]} 29... Kh7 {[%clk 0:08:51.5]} 30. d6 {[%clk 0:04:37.5]} 30...
Qb6 {[%clk 0:08:47.9]} 31. Rxe7+ {[%clk 0:04:27.4]} 31... Rxe7 {[%clk
0:08:39.5]} 32. Rxe7+ {[%clk 0:04:29.3]} 32... Kh8 {[%clk 0:08:29.6]} 33. Qf7
{[%clk 0:04:20.1]} 33... Qd4 {[%clk 0:08:20.8]} 34. Qh7# {[%clk 0:04:20.5]} 1-0

[Event "Sabato rapido!"]
[Site "Chess.com"]
[Date "2020.05.09"]
[Round "4"]
[White "markk000"]
[Black "Mrtre7"]
[Result "1-0"]
[WhiteElo "1523"]
[BlackElo "1428"]
[TimeControl "720+3"]
[EndTime "7:52:03 PDT"]
[Termination "markk000 ha vinto per abbandono"]

1. d4 {[%clk 0:12:02.9]} 1... d5 {[%clk 0:11:22.3]} 2. c4 {[%clk 0:12:00]} 2...
c6 {[%clk 0:11:19.9]} 3. Nc3 {[%clk 0:11:57.6]} 3... e6 {[%clk 0:11:11.6]} 4.
Nf3 {[%clk 0:11:57.6]} 4... dxc4 {[%clk 0:11:12.1]} 5. e3 {[%clk 0:11:58.5]}
5... Bb4 {[%clk 0:11:13.6]} 6. Bxc4 {[%clk 0:11:59.6]} 6... b5 {[%clk
0:11:06.8]} 7. Bd3 {[%clk 0:12:01]} 7... Nf6 {[%clk 0:11:08.6]} 8. O-O {[%clk
0:12:02]} 8... Nbd7 {[%clk 0:11:08.6]} 9. Bd2 {[%clk 0:12:02.4]} 9... Be7 {[%clk
0:11:05.5]} 10. Rc1 {[%clk 0:11:58.4]} 10... Bb7 {[%clk 0:10:58.9]} 11. Ne4
{[%clk 0:11:50.6]} 11... Rc8 {[%clk 0:10:33.6]} 12. Qc2 {[%clk 0:11:44.7]} 12...
O-O {[%clk 0:10:22.2]} 13. Ne5 {[%clk 0:11:11.5]} 13... Nxe5 {[%clk 0:10:12]}
14. dxe5 {[%clk 0:11:14.4]} 14... Nd5 {[%clk 0:10:08.2]} 15. Nc5 {[%clk
0:10:54.7]} 15... Ba8 {[%clk 0:07:43.3]} 16. Bxh7+ {[%clk 0:10:33.4]} 16... Kh8
{[%clk 0:07:37.6]} 17. Bd3 {[%clk 0:10:05.4]} 17... g6 {[%clk 0:06:28.2]} 18.
Bxg6 {[%clk 0:09:15.7]} 18... fxg6 {[%clk 0:06:28.5]} 19. Nxe6 {[%clk
0:09:15.2]} 19... Qe8 {[%clk 0:06:05.1]} 20. Nxf8 {[%clk 0:09:16]} 20... Bxf8
{[%clk 0:06:06.6]} 21. Bc3 {[%clk 0:09:12.2]} 21... Nxc3 {[%clk 0:05:30.8]} 22.
Qxc3 {[%clk 0:09:12.8]} 22... b4 {[%clk 0:05:27.8]} 23. Qd4 {[%clk 0:08:47.6]}
23... c5 {[%clk 0:05:17]} 24. Qh4+ {[%clk 0:08:48.1]} 24... Kg7 {[%clk 0:05:14]}
25. Qf6+ {[%clk 0:08:47.4]} 25... Kh7 {[%clk 0:04:59.5]} 26. Rc4 {[%clk
0:08:44.6]} 26... Bh6 {[%clk 0:04:07.8]} 27. Rh4 {[%clk 0:08:27.2]} 27... Qf8
{[%clk 0:04:01.6]} 28. Qd6 {[%clk 0:08:00.8]} 28... Qxd6 {[%clk 0:02:40.7]} 29.
exd6 {[%clk 0:08:01.4]} 29... Rd8 {[%clk 0:02:42.6]} 30. Rd1 {[%clk 0:07:58.5]}
30... Kg7 {[%clk 0:02:39.8]} 31. e4 {[%clk 0:07:55.3]} 31... Bg5 {[%clk
0:02:34.1]} 32. Rg4 {[%clk 0:07:50.9]} 32... Be7 {[%clk 0:02:00.1]} 33. e5
{[%clk 0:07:40.2]} 33... Kf7 {[%clk 0:01:36.1]} 34. f4 {[%clk 0:07:26]} 34...
Bf8 {[%clk 0:01:36.3]} 35. Rh4 {[%clk 0:07:17.9]} 35... Bg7 {[%clk 0:01:37.1]}
36. Rh7 {[%clk 0:07:18.3]} 36... Be4 {[%clk 0:01:24.6]} 37. e6+ {[%clk
0:06:37.7]} 37... Kxe6 {[%clk 0:01:02.1]} 38. Rxg7 {[%clk 0:06:35.2]} 38... Rxd6
{[%clk 0:01:04]} 39. Rxd6+ {[%clk 0:06:36.4]} 39... Kxd6 {[%clk 0:01:06]} 40.
Rxa7 {[%clk 0:06:37.6]} 40... Kd5 {[%clk 0:00:56.3]} 41. Kf2 {[%clk 0:06:26.3]}
41... Kc4 {[%clk 0:00:52]} 42. Rc7 {[%clk 0:06:22.4]} 42... Kb5 {[%clk
0:00:50.1]} 43. Ke3 {[%clk 0:06:22.5]} 43... Bxg2 {[%clk 0:00:49.2]} 44. Rg7
{[%clk 0:06:16.9]} 44... Bd5 {[%clk 0:00:45.6]} 45. a3 {[%clk 0:06:10.4]} 45...
bxa3 {[%clk 0:00:37.9]} 46. bxa3 {[%clk 0:06:13.3]} 46... c4 {[%clk 0:00:22.4]}
47. Rxg6 {[%clk 0:06:13.6]} 47... Bf7 {[%clk 0:00:14.6]} 48. Rg5+ {[%clk
0:06:11.1]} 48... Ka4 {[%clk 0:00:15.6]} 49. Rg7 {[%clk 0:06:00.7]} 49... Be6
{[%clk 0:00:13.3]} 50. Ra7+ {[%clk 0:06:01.5]} 50... Kb3 {[%clk 0:00:13]} 51. h4
{[%clk 0:06:03.1]} 51... c3 {[%clk 0:00:14.8]} 52. h5 {[%clk 0:06:02.8]} 52...
c2 {[%clk 0:00:14.2]} 53. Kd2 {[%clk 0:05:59.9]} 53... Bf5 {[%clk 0:00:14.1]}
54. Rc7 {[%clk 0:06:01.2]} 54... Kxa3 {[%clk 0:00:14.7]} 55. Rxc2 {[%clk
0:06:01.9]} 55... Kb4 {[%clk 0:00:14.4]} 56. Rc1 {[%clk 0:06:02.5]} 56... Kb5
{[%clk 0:00:15]} 57. h6 {[%clk 0:06:04.8]} 57... Bh7 {[%clk 0:00:14.7]} 58. Ke3
{[%clk 0:06:06.9]} 58... Kb6 {[%clk 0:00:14]} 59. Kd4 {[%clk 0:06:09.1]} 59...
Kb5 {[%clk 0:00:15.4]} 60. Ke5 {[%clk 0:06:11.5]} 60... Kb4 {[%clk 0:00:15.4]}
61. Kf6 {[%clk 0:06:13.5]} 61... Kb5 {[%clk 0:00:16.5]} 62. Kg7 {[%clk
0:06:14.8]} 62... Be4 {[%clk 0:00:15.1]} 63. h7 {[%clk 0:06:16.8]} 1-0